Workbook

Sheet ДСП
A2: ПРАЙС на ДСП
A3: № | B3: Наименование | C3: Производитель | D3: м2 | E3: Цена за м2 | F3: Стоимость | G3: Выбор +
A4: 1 | B4: ДСП кухня | C4: Egger (Австрия)16 мм | D4: =C153+C155 -> 0 | E4: 1700 | F4: =D4*E4 -> 0 | G4: +
A5: 2 | B5: ДСП кухня | C5: Kronospan (Россия)16 мм | D5: =C153+C155 -> 0 | E5: 1700 | F5: 0 | G5: +
A6: 3 | B6: ДСП кухня | C6: Lamarty (Польша)16 мм | D6: =C153+C155 -> 0 | E6: 1700 | F6: 0 | G6: +
A7: 4 | B7: ДСП кухня | C7: Шексна (Россия) 16 мм | D7: =C153 -> 0 | E7: 1500 | F7: 0 | G7: +
A8: 5 | B8: ДСП кухня | C8: Монза Россия 16 мм | D8: =C153+C155 -> 0 | E8: 1500 | F8: 0 | G8: +
A9: 6 | B9: ДСП | C9: Egger (Австрия )16 мм | D9: 0 | E9: 1300 | F9: 0
A10: 7 | B10: ДСП | C10: Kronospan (Россия) 16 мм | D10: 0 | E10: 1250 | F10: 0
A11: 8 | B11: ДСП | C11: Lamarty (Польша) 16 мм | D11: 0 | E11: 1250 | F11: 0
A12: 9 | B12: ДСП | C12: Шексна (Россия)16 мм | D12: 0 | E12: 1200 | F12: 0
A13: 10 | B13: ДСП | C13: Монза (Россия) 16 мм | D13: 0 | E13: 1200 | F13: 0
A14: 11 | B14: ДСП | C14: Egger Австрия 32 мм | D14: 0 | E14: 1700 | F14: 0
A15: 12 | B15: ДСП | C15: Kronospan (Россия) 32 мм | D15: 0 | E15: 1700 | F15: 0
A16: 13 | B16: ДСП | C16: Lamarty (Польша )32 мм | D16: 0 | E16: 1700 | F16: 0
A17: 14 | B17: ДСП | C17: Шексна (Россия) 32 мм | D17: 0 | E17: 1500 | F17: 0
A18: 15 | B18: ДСП | C18: Монза (Россия) 32 мм | D18: 0 | E18: 1500 | F18: 0

Sheet Фасады
A2: Прайс на фасады и материалы
A3: № | B3: Наименование | C3: Производитель | D3: м2 | E3: Цена за м2 | F3: Стоимость | G3: Выбор +
A4: 1 | B4: Фасад МДФ пленка | C4: ЭКМИ Россия матовая | D4: 0 | E4: 3000 | F4: =Фасады!$D4*Фасады!$E4 -> 0
A5: 2 | B5: Фасад МДФ пленка | C5: ЭКМИ Россия глянцевая | D5: 0 | E5: 3500 | F5: =Фасады!$D5*Фасады!$E5 -> 0
A6: 3 | B6: Фасад МДФ пленка | C6: ЭКМИ Россия металлик | D6: 5 | E6: 4000 | F6: =Фасады!$D6*Фасады!$E6 -> 20000 | G6: +
A7: 4 | B7: Фасад МДФ пленка | C7: Италия | D7: 1 | E7: 5000 | F7: =Фасады!$D7*Фасады!$E7 -> 5000 | G7: +
A8: 5 | B8: Фасад МДФ эмаль | C8: ORACAL Италия матовая | D8: 0 | E8: 5000 | F8: =Фасады!$D8*Фасады!$E8 -> 0 | G8: +
A9: 6 | B9: Фасад МДФ эмаль | C9: ORACAL Италия глянцевая | D9: 0 | E9: 5500 | F9: =Фасады!$D9*Фасады!$E9 -> 0 | G9: +
A10: 7 | B10: Фасад МДФ эмаль | C10: ORACAL Италия металлик | D10: 0 | E10: 5500 | F10: =Фасады!$D10*Фасады!$E10 -> 0 | G10: +
A11: 8 | B11: Фасад МДФ пластик в ПВХ кромке | C11: ARPA Италия матовый | D11: 0 | E11: 6000 | F11: =Фасады!$D11*Фасады!$E11 -> 0 | G11: +
A12: 9 | B12: Фасад МДФ пластик в ПВХ кромке | C12: ARPA Италия глянец | D12: 0 | E12: 6500 | F12: =Фасады!$D12*Фасады!$E12 -> 0
A13: 10 | B13: Фасад МДФ пластик в алюмин.рамке | C13: ARPA Италия матовый | D13: 0 | E13: 6000 | F13: =Фасады!$D13*Фасады!$E13 -> 0
A14: 11 | B14: Фасад МДФ пластик в ПВХ кромке | C14: ARPA Италия глянец | D14: 0 | E14: 6500 | F14: =Фасады!$D14*Фасады!$E14 -> 0
A15: 12 | B15: Фасад рамочный | C15: AGT Турция | D15: 0 | E15: 3500 | F15: =Фасады!$D15*Фасады!$E15 -> 0
A16: 13 | B16: Фасад рамочный | C16: Россия | D16: 0 | E16: 3000 | F16: =Фасады!$D16*Фасады!$E16 -> 0
A17: 14 | B17: Фасад UY в ПВХ кромке | C17: AGT Турция | D17: 0 | E17: 5500 | F17: =Фасады!$D17*Фасады!$E17 -> 0
A18: 15 | B18: Фасад UY в алюмин.рамке | C18: AGT Турция | D18: 0 | E18: 6000 | F18: =Фасады!$D18*Фасады!$E18 -> 0
A19: 16 | B19: Фасад ЛДСП в ПВХ кромке | C19: Россия | D19: 0 | E19: 1800 | F19: =Фасады!$D19*Фасады!$E19 -> 0
A20: 17 | B20: Фасад ЛДСП в алюмин.рамке | C20: Россия | D20: 0 | E20: 2000 | F20: =Фасады!$D20*Фасады!$E20 -> 0
A21: 18 | B21: Фасад алюминиевый под стекло(+) | C21: Россия | D21: 0.4 | E21: 6000 | F21: =Фасады!$D21*Фасады!$E21 -> 2400
A22: 19 | D22: 0 | F22: =Фасады!$D22*Фасады!$E22 -> 0
A23: 20 | B23: Фасад гнутый пленка | C23: ЭКМИ Россия матовая | D23: 0 | E23: 3000 | F23: =Фасады!$D23*Фасады!$E23 -> 0
A24: 21 | B24: Фасад гнутый пленка | C24: ЭКМИ Россия глянцевая | D24: 0 | E24: 3500 | F24: =Фасады!$D24*Фасады!$E24 -> 0
A25: 22 | B25: Фасад гнутый пленка | C25: ЭКМИ Россия металлик | D25: 0 | E25: 4000 | F25: =Фасады!$D25*Фасады!$E25 -> 0
A26: 23 | B26: Фасад гнутый эмаль | C26: ORACAL Италия матовая | D26: 0 | E26: 5000 | F26: =Фасады!$D26*Фасады!$E26 -> 0
A27: 24 | B27: Фасад гнутый эмаль | C27: ORACAL Италия глянцевая | D27: 0 | E27: 5500 | F27: =Фасады!$D27*Фасады!$E27 -> 0
A28: 25 | B28: Фасад гнутый эмаль | C28: ORACAL Италия металлик | D28: 0 | E28: 5500 | F28: =Фасады!$D28*Фасады!$E28 -> 0
A29: 26 | B29: Фасад гнутый пластик в ПВХ | C29: ARPA Италия матовый | D29: 0 | E29: 6000 | F29: =Фасады!$D29*Фасады!$E29 -> 0
A30: 27 | B30: Фасад гнутый пластик в ПВХ | C30: ARPA Италия глянец | D30: 0 | E30: 6500 | F30: =Фасады!$D30*Фасады!$E30 -> 0
A31: 28 | B31: Фотопечать | C31: каталог | D31: 0 | F31: =Фасады!$D31*Фасады!$E31 -> 0
A32: 29 | B32: Зеркало | C32: серебро | D32: 0 | F32: =Фасады!$D32*Фасады!$E32 -> 0
A33: 30 | B33: Зеркало | C33: бронза | D33: 0 | F33: =Фасады!$D33*Фасады!$E33 -> 0
A34: 31 | B34: Зеркало | C34: сатин | D34: 0 | F34: =Фасады!$D34*Фасады!$E34 -> 0
A35: 32 | B35: Зеркало | C35: пескоструй | D35: 0 | F35: =Фасады!$D35*Фасады!$E35 -> 0
A36: 33 | B36: Зеркало | D36: 0 | F36: =Фасады!$D36*Фасады!$E36 -> 0
A37: 34 | B37: Стекло | C37: крашенное | D37: 0 | F37: =Фасады!$D37*Фасады!$E37 -> 0
A38: 35 | B38: Стекло | C38: пескоструй | D38: 0 | F38: =Фасады!$D38*Фасады!$E38 -> 0
A39: 36 | B39: Стекло | C39: тонированное | D39: 0 | F39: =Фасады!$D39*Фасады!$E39 -> 0
A40: 37 | B40: Стекло | C40: бцв.обычное | D40: 0 | F40: =Фасады!$D40*Фасады!$E40 -> 0
A41: 38 | B41: Стекло | C41: каталог | D41: 0 | F41: =Фасады!$D41*Фасады!$E41 -> 0
A42: 39 | B42: Искуственная кожа | D42: 0 | F42: =Фасады!$D42*Фасады!$E42 -> 0
A43: 40 | B43: Пластики | C43: Siby | D43: 0 | F43: =Фасады!$D43*Фасады!$E43 -> 0
A44: 41 | B44: Метакриловое стекло | D44: 0 | F44: =Фасады!$D44*Фасады!$E44 -> 0
A45: 42 | B45: Ротанг | D45: 0 | F45: =Фасады!$D45*Фасады!$E45 -> 0
A46: 43 | B46: Бамбук | D46: 0 | F46: =Фасады!$D46*Фасады!$E46 -> 0
A47: 44 | B47: Триплекс | D47: 0 | F47: =Фасады!$D47*Фасады!$E47 -> 0
A48: 45 | D48: 0 | F48: =Фасады!$D48*Фасады!$E48 -> 0
A49: 46 | D49: 0 | F49: =Фасады!$D49*Фасады!$E49 -> 0
A50: 47 | D50: 0 | F50: =Фасады!$D50*Фасады!$E50 -> 0
A51: 48 | D51: 0 | F51: =Фасады!$D51*Фасады!$E51 -> 0
A52: 49 | D52: 0 | F52: =Фасады!$D52*Фасады!$E52 -> 0
A53: 50 | D53: 0 | F53: =Фасады!$D53*Фасады!$E53 -> 0
A54: 51 | D54: 0 | F54: =Фасады!$D54*Фасады!$E54 -> 0
A55: 52 | D55: 0 | F55: =Фасады!$D55*Фасады!$E55 -> 0
A56: 53 | D56: 0 | F56: =Фасады!$D56*Фасады!$E56 -> 0
A57: 54 | D57: 0 | F57: =Фасады!$D57*Фасады!$E57 -> 0
A58: 55 | D58: 0 | F58: =Фасады!$D58*Фасады!$E58 -> 0
A59: 56 | D59: 0 | F59: =Фасады!$D59*Фасады!$E59 -> 0
A60: 57 | D60: 0 | F60: =Фасады!$D60*Фасады!$E60 -> 0

Sheet Столешницы
B3: Наименование | C3: Производитель | D3: Кол-во шт | E3: Цена за шт | F3: Стоимость | G3: Выбор +
B4: Столешница 3050 на 600 | C4: Россия 38 мм | D4: 1 | E4: 4500 | F4: =Столешницы!$D4*Столешницы!$E4 -> 4500 | G4: +
B5: Столешница | C5: Италия 28 мм | D5: 1 | E5: 5000 | F5: =Столешницы!$D5*Столешницы!$E5 -> 5000 | G5: +
B6: Столешница | C6: Италия 38 мм | D6: 1 | E6: 6000 | F6: =Столешницы!$D6*Столешницы!$E6 -> 6000 | G6: +
F7: =Столешницы!$D7*Столешницы!$E7 -> 0
F8: =Столешницы!$D8*Столешницы!$E8 -> 0
F9: =Столешницы!$D9*Столешницы!$E9 -> 0
F10: =Столешницы!$D10*Столешницы!$E10 -> 0
F11: =Столешницы!$D11*Столешницы!$E11 -> 0
F12: =Столешницы!$D12*Столешницы!$E12 -> 0
F13: =Столешницы!$D13*Столешницы!$E13 -> 0
F14: =Столешницы!$D14*Столешницы!$E14 -> 0
F15: =Столешницы!$D15*Столешницы!$E15 -> 0
F16: =Столешницы!$D16*Столешницы!$E16 -> 0
F17: =Столешницы!$D17*Столешницы!$E17 -> 0
F18: =Столешницы!$D18*Столешницы!$E18 -> 0

Sheet Фурнитура
B3: Наименование | C3: Производитель | D3: Размер. Шт | E3: Цена за шт | F3: Стоимость | G3: Выбор +
B4: ручка | C4: Россия 96 мм | D4: 1 | E4: 100 | F4: =Фурнитура!$D4*Фурнитура!$E4 -> 100 | G4: +
B5: петля | C5: Италия 90 гр | D5: 1 | E5: 200 | F5: =Фурнитура!$D5*Фурнитура!$E5 -> 200 | G5: +
B6: корзинка | C6: Италия 300 мм | D6: 1 | E6: 2000 | F6: =Фурнитура!$D6*Фурнитура!$E6 -> 2000 | G6: +
F7: =Фурнитура!$D7*Фурнитура!$E7 -> 0
F8: =Фурнитура!$D8*Фурнитура!$E8 -> 0
F9: =Фурнитура!$D9*Фурнитура!$E9 -> 0
F10: =Фурнитура!$D10*Фурнитура!$E10 -> 0
F11: =Фурнитура!$D11*Фурнитура!$E11 -> 0
F12: =Фурнитура!$D12*Фурнитура!$E12 -> 0
F13: =Фурнитура!$D13*Фурнитура!$E13 -> 0
F14: =Фурнитура!$D14*Фурнитура!$E14 -> 0
F15: =Фурнитура!$D15*Фурнитура!$E15 -> 0
F16: =Фурнитура!$D16*Фурнитура!$E16 -> 0
F17: =Фурнитура!$D17*Фурнитура!$E17 -> 0
F18: =Фурнитура!$D18*Фурнитура!$E18 -> 0

Sheet Спецификация
B1: ИП Григорович А.В Cntrl+ф | E1: студия мебели "SpektrHaus" т.55-22-85 пр-т Дзержинского 43
B2: Спецификация | C2: Приложение к договору №_____
A3: № | B3: Наименование | C3: Производитель | D3: Размер | E3: Цена | F3: Стоимость
A4: 1 | B4: ДСП кухня | C4: Egger (Австрия)16 мм | D4: 0 | E4: 1700 | F4: 0 | G4: ДСП
A5: 2 | B5: ДСП кухня | C5: Kronospan (Россия)16 мм | D5: 0 | E5: 1700 | F5: 0 | G5: ДСП
A6: 3 | B6: ДСП кухня | C6: Lamarty (Польша)16 мм | D6: 0 | E6: 1700 | F6: 0 | G6: ДСП
A7: 4 | B7: ДСП кухня | C7: Шексна (Россия) 16 мм | D7: 0 | E7: 1500 | F7: 0 | G7: ДСП
A8: 5 | B8: ДСП кухня | C8: Монза Россия 16 мм | D8: 0 | E8: 1500 | F8: 0 | G8: ДСП
A9: 6 | B9: Фасад МДФ пленка | C9: ЭКМИ Россия металлик | D9: 5 | E9: 4000 | F9: 20000 | G9: Фасады
A10: 7 | B10: Фасад МДФ пленка | C10: Италия | D10: 1 | E10: 5000 | F10: 5000 | G10: Фасады
A11: 8 | B11: Фасад МДФ эмаль | C11: ORACAL Италия матовая | D11: 0 | E11: 5000 | F11: 0 | G11: Фасады
A12: 9 | B12: Фасад МДФ эмаль | C12: ORACAL Италия глянцевая | D12: 0 | E12: 5500 | F12: 0 | G12: Фасады
A13: 10 | B13: Фасад МДФ эмаль | C13: ORACAL Италия металлик | D13: 0 | E13: 5500 | F13: 0 | G13: Фасады
A14: 11 | B14: Фасад МДФ пластик в ПВХ кромке | C14: ARPA Италия матовый | D14: 0 | E14: 6000 | F14: 0 | G14: Фасады
A15: 12 | B15: Столешница 3050 на 600 | C15: Россия 38 мм | D15: 1 | E15: 4500 | F15: 4500 | G15: Столешницы
A16: 13 | B16: Столешница | C16: Италия 28 мм | D16: 1 | E16: 5000 | F16: 5000 | G16: Столешницы
A17: 14 | B17: Столешница | C17: Италия 38 мм | D17: 1 | E17: 6000 | F17: 6000 | G17: Столешницы
A18: 15 | B18: ручка | C18: Россия 96 мм | D18: 1 | E18: 100 | F18: 100 | G18: Фурнитура
A19: 16 | B19: петля | C19: Италия 90 гр | D19: 1 | E19: 200 | F19: 200 | G19: Фурнитура
A20: 17 | B20: корзинка | C20: Италия 300 мм | D20: 1 | E20: 2000 | F20: 2000 | G20: Фурнитура
A21: 18
A22: 19
A23: 20
A24: 21
A25: 22
A26: 23
A27: 24
A28: 25
A29: 26
A30: 27
A31: 28
A32: 29
A33: 30
A34: 31
A35: 32
A36: 33
A37: 34
A38: 35
A39: 36
A40: 37
A41: 38
A42: 39
A43: 40
A44: 41 | B44: Cтоимость изделия | F44: =SUM($F$4:$F$43) -> 42800
A45: 42 | B45: Демонтаж
A46: 43 | B46: Монтаж | D46: 0.1 | F46: =(F44*D46) -> 4280
A47: 44 | B47: Доставка
A48: 45 | B48: Подъем | D48: 5 | E48: 100 | F48: =D48*E48 -> 500
A49: 46 | B49: Стоимость доп. услуг | F49: =SUM($F$45:$F$48) -> 4780
A50: 47 | B50: Итог: | F50: =F44+F49 -> 47580
B52: Со спецификацией ознакомлен и согласен | D52: =TODAY() -> 2015-03-21
D53: дата | E53: подпись/расшифровка
